fUSD/lending_fUSD_20250811
["ID","MTS","AMOUNT","RATE_DAILY","PERIOD"]
[378567444,1754913148609,-400.0,0.00018815,2]
[378567445,1754913148617,-486.47,0.00018815,2]
[378567446,1754913148626,-1360.56,0.00018815,2]
[378567447,1754913148635,-862.74,0.00018815,2]
[378567448,1754913148644,-400.0,0.00018815,2]
[378567449,1754913148653,-1924.52,0.00018815,2]
[378567450,1754913148662,-2103.16,0.00018815,2]
[378567451,1754913148674,-400.0,0.00018815,2]
[378567452,1754913148683,-650.99,0.00018815,2]
[378567453,1754913148692,-450.63,0.00018815,2]
[378567454,1754913148701,-551.93,0.00018815,2]
[378567455,1754913148711,-535.63,0.00018815,2]
[378567456,1754913148720,-400.0,0.00018815,2]
[378567457,1754913148730,-1110.75,0.00018815,2]
[378567458,1754913148740,-616.85,0.00018815,2]
[378567459,1754913148749,-3665.68,0.00018815,2]
[378567460,1754913148759,-538.73,0.00018815,2]
[378567461,1754913148768,-400.0,0.00018815,2]
[378567462,1754913148777,-1238.34,0.00018815,2]
[378567463,1754913148786,-400.0,0.00018815,2]
[378567464,1754913148795,-400.0,0.00018815,2]
[378567465,1754913148805,-1103.47,0.00018815,2]
[378567466,1754913148814,-1832.23,0.00018815,2]
[378567467,1754913148823,-400.0,0.00018815,2]
[378567468,1754913148832,-667.01,0.00018815,2]
[378567469,1754913148842,-400.0,0.00018815,2]
[378567470,1754913148851,-3599.22,0.00018815,2]
[378567471,1754913148860,-400.0,0.00018815,2]
[378567472,1754913148870,-3965.48,0.00018815,2]
[378567473,1754913148879,-400.0,0.00018815,2]
[378567474,1754913148889,-763.33,0.00018815,2]
[378567475,1754913148898,-513.17,0.00018815,2]
[378567476,1754913148907,-2315.63,0.00018815,2]
[378567477,1754913148917,-1032.43,0.00018815,2]
[378567478,1754913148926,-2928.22,0.00018815,2]
[378567479,1754913148936,-625.35,0.00018815,2]
[378567480,1754913148945,-400.0,0.00018815,2]
[378567481,1754913148954,-1951.78,0.00018815,2]
[378567482,1754913148964,-400.0,0.00018815,2]
[378567483,1754913148973,-1219.07,0.00018815,2]
[378567484,1754913148982,-400.0,0.00018815,2]
[378567485,1754913148991,-1303.97,0.00018815,2]
[378567486,1754913149000,-1039.56,0.00018815,2]
[378567487,1754913149009,-602.38,0.00018815,2]
[378567488,1754913149018,-617.95,0.00018815,2]
[378567489,1754913149027,-401.58,0.00018815,2]
[378567490,1754913149036,-5755.72,0.00018815,2]
[378567491,1754913149047,-783.72,0.00018815,2]
[378567492,1754913149056,-400.0,0.00018815,2]
[378567493,1754913149065,-400.0,0.00018815,2]
[378567494,1754913149075,-1955.89,0.00018815,2]
[378567495,1754913149085,-479.01,0.00018815,2]
[378567496,1754913149094,-1475.85,0.00018815,2]
[378567497,1754913149104,-1996.46,0.00018815,2]
[378567498,1754913149113,-447.09,0.00018815,2]
[378567499,1754913149123,-165.702871,0.00018815,2]
[378567500,1754913149132,-578.81,0.00018815,2]
[378567501,1754913149142,-791.98,0.00018815,2]
[378567502,1754913149151,-2675.98,0.00018815,2]
[378567503,1754913149160,-497.831891,0.00018815,2]
[378567504,1754913149172,-1152.081676,0.00018815,2]
[378567505,1754913149182,-400.0,0.00018815,2]
[378567506,1754913149191,-400.0,0.00018815,2]
[378567507,1754913149201,-470.78,0.00018815,2]
[378567508,1754913149212,-696.81,0.00018815,2]
[378567509,1754913149221,-1016.93,0.00018815,2]
[378567510,1754913149231,-400.0,0.00018815,2]
[378567511,1754913149240,-6727.5,0.00018815,2]
[378567512,1754913149250,-610.99,0.00018815,2]
[378567513,1754913149260,-529.01,0.00018815,2]
[378567514,1754913149273,-400.0,0.00018815,2]
[378567515,1754913149283,-5623.33,0.00018815,2]
[378567516,1754913149294,-1089.579135,0.00018815,2]
[378567517,1754913149306,-546.53,0.00018815,2]
[378567518,1754913149316,-400.0,0.00018815,2]
[378567519,1754913149326,-400.0,0.00018815,2]
[378567520,1754913149336,-400.0,0.00018815,2]
[378567521,1754913149346,-400.0,0.00018815,2]
[378567522,1754913149357,-790.77,0.00018815,2]
[378567523,1754913149366,-2711.02,0.00018815,2]
[378567524,1754913149375,-895.23,0.00018815,2]
[378567525,1754913149385,-487.57,0.00018815,2]
[378567526,1754913149395,-1287.58,0.00018815,2]
[378567527,1754913149405,-532.2,0.00018815,2]
[378567528,1754913149414,-709.95,0.00018815,2]
[378567529,1754913149427,-1341.71,0.00018815,2]
[378567530,1754913149437,-160.0,0.00018815,2]
[378567531,1754913149446,-239.84119403,0.00018815,2]
[378567532,1754913149456,-359.76179104,0.00018815,2]
[378567533,1754913149467,-457.98167839,0.00018816,2]
[378567534,1754913149476,-411.4,0.00018816,2]
[378567535,1754913149486,-1472.06,0.00018816,2]
[378567536,1754913149496,-604.88,0.00018816,2]
[378567537,1754913149506,-505.49,0.00018816,2]
[378567538,1754913149515,-879.62,0.00018816,2]
[378567539,1754913149524,-400.0,0.00018816,2]
[378567540,1754913149533,-829.69,0.00018816,2]
[378567541,1754913149543,-515.07,0.00018816,2]
[378567542,1754913149553,-659.98,0.00018816,2]
[378567543,1754913149562,-400.0,0.00018816,2]
[378567544,1754913149571,-771.45,0.00018816,2]
[378567545,1754913149581,-400.0,0.00018816,2]
[378567546,1754913149590,-506.28,0.00018816,2]
[378567547,1754913149599,-743.21,0.00018816,2]
[378567548,1754913149610,-942.45,0.00018816,2]
[378567549,1754913149619,-540.15,0.00018816,2]
[378567550,1754913149629,-400.0,0.00018816,2]
[378567551,1754913149638,-523.63,0.00018816,2]
[378567552,1754913149647,-400.0,0.00018816,2]
[378567553,1754913149656,-408.21,0.00018816,2]
[378567554,1754913149666,-599.86,0.00018816,2]
[378567555,1754913149676,-893.56,0.00018816,2]
[378567556,1754913149685,-400.0,0.00018816,2]
[378567557,1754913149694,-400.0,0.00018816,2]
[378567558,1754913149704,-400.0,0.00018816,2]
[378567559,1754913149715,-759.92,0.00018816,2]
[378567560,1754913149724,-464.83,0.00018816,2]
[378567561,1754913149734,-400.0,0.00018816,2]
[378567562,1754913149744,-400.0,0.00018816,2]
[378567563,1754913149753,-400.0,0.00018816,2]
[378567564,1754913149763,-862.15,0.00018816,2]
[378567565,1754913149772,-400.0,0.00018816,2]
[378567566,1754913149782,-817.78,0.00018816,2]
[378567567,1754913149791,-400.0,0.00018816,2]
[378567568,1754913149801,-400.0,0.00018816,2]
[378567569,1754913149811,-445.95,0.00018816,2]
[378567570,1754913149820,-479.75,0.00018816,2]
[378567571,1754913149830,-681.68,0.00018816,2]
[378567572,1754913149839,-419.27,0.00018816,2]
[378567573,1754913149849,-400.0,0.00018816,2]
[378567574,1754913149859,-400.0,0.00018816,2]
[378567575,1754913149869,-1171.58,0.00018816,2]
[378567576,1754913149879,-400.0,0.00018816,2]
[378567577,1754913149888,-652.15,0.00018816,2]
[378567578,1754913149899,-208.02988559,0.00018816,2]
[378567579,1754913149909,-400.0,0.00018816,2]
[378567580,1754913149923,-895.92,0.00018816,2]
[378567581,1754913149933,-865.05,0.00018816,2]
[378567582,1754913149943,-620.65,0.00018816,2]
[378567583,1754913149953,-401.39,0.00018816,2]
[378567584,1754913149964,-475.4,0.00018816,2]
[378567585,1754913149973,-1011.29,0.00018816,2]
[378567586,1754913149983,-400.0,0.00018816,2]
[378567587,1754913149993,-444.01,0.00018816,2]
[378567588,1754913150003,-1023.09,0.00018816,2]
[378567589,1754913150014,-695.97,0.00018816,2]
[378567590,1754913150024,-1133.88,0.00018816,2]
[378567591,1754913150035,-694.53,0.00018816,2]
[378567592,1754913150045,-400.0,0.00018816,2]
[378567593,1754913150055,-758.91,0.00018816,2]
[378567594,1754913150065,-422.25,0.00018816,2]
[378567595,1754913150075,-890.17,0.00018816,2]
[378567596,1754913150085,-860.13,0.00018816,2]
[378567597,1754913150094,-470.87,0.00018816,2]
[378567598,1754913150103,-1394.05,0.00018816,2]
[378567599,1754913150113,-400.0,0.00018816,2]
[378567600,1754913150123,-400.0,0.00018816,2]
[378567601,1754913150133,-910.03,0.00018816,2]
[378567602,1754913150143,-962.55,0.00018816,2]
[378567603,1754913150152,-1368.56,0.00018816,2]
[378567604,1754913150162,-743.88,0.00018816,2]
[378567605,1754913150174,-1031.13,0.00018816,2]
[378567606,1754913150184,-409.76,0.00018816,2]
[378567607,1754913150194,-540.06,0.00018816,2]
[378567608,1754913150204,-845.56,0.00018816,2]
[378567609,1754913150214,-792.64,0.00018816,2]
[378567610,1754913150223,-1762.08,0.00018816,2]
[378567611,1754913150233,-593.38,0.00018816,2]
[378567612,1754913150243,-597.49,0.00018816,2]
[378567613,1754913150253,-506.13,0.00018816,2]
[378567614,1754913150265,-1629.14,0.00018816,2]
[378567615,1754913150275,-993.68,0.00018816,2]
[378567616,1754913150286,-400.0,0.00018816,2]
[378567617,1754913150295,-400.0,0.00018816,2]
[378567618,1754913150306,-513.33,0.00018816,2]
[378567619,1754913150316,-400.0,0.00018816,2]
[378567620,1754913150326,-1141.73,0.00018816,2]
[378567621,1754913150336,-400.0,0.00018816,2]
[378567622,1754913150346,-670.5,0.00018816,2]
[378567623,1754913150357,-423.65,0.00018816,2]
[378567624,1754913150366,-892.5,0.00018816,2]
[378567625,1754913150375,-400.0,0.00018816,2]
[378567626,1754913150385,-908.52,0.00018816,2]
[378567627,1754913150395,-965.86,0.00018816,2]
[378567628,1754913150405,-670.06,0.00018816,2]
[378567629,1754913150414,-400.0,0.00018816,2]
[378567630,1754913150426,-874.48,0.00018816,2]
[378567631,1754913150435,-979.39,0.00018816,2]
[378567632,1754913150445,-1333.91,0.00018816,2]
[378567633,1754913150455,-905.1,0.00018816,2]
[378567634,1754913150465,-400.0,0.00018816,2]
[378567635,1754913150475,-894.54,0.00018816,2]
[378567636,1754913150485,-676.94,0.00018816,2]
[378567637,1754913150495,-400.0,0.00018816,2]
[378567638,1754913150505,-400.0,0.00018816,2]
[378567639,1754913150516,-400.0,0.00018816,2]
[378567640,1754913150526,-542.48,0.00018816,2]
[378567641,1754913150536,-508.79,0.00018816,2]
[378567642,1754913150546,-999.87,0.00018816,2]
[378567643,1754913150556,-3049.11,0.00018816,2]
[378567644,1754913150566,-1358.48,0.00018816,2]
[378567645,1754913150576,-400.0,0.00018816,2]
[378567646,1754913150586,-588.01,0.00018816,2]
[378567647,1754913150597,-400.0,0.00018816,2]
[378567648,1754913150608,-917.7,0.00018816,2]
[378567649,1754913150618,-575.14,0.00018816,2]
[378567650,1754913150628,-534.7,0.00018816,2]
[378567651,1754913150638,-400.0,0.00018816,2]
[378567652,1754913150648,-1119.85,0.00018816,2]
[378567653,1754913150658,-400.0,0.00018816,2]
[378567654,1754913150669,-400.0,0.00018816,2]
[378567655,1754913150679,-1484.62,0.00018816,2]
[378567656,1754913150689,-1423.31,0.00018816,2]
[378567657,1754913150699,-1105.92,0.00018816,2]
[378567658,1754913150709,-778.81,0.00018816,2]
[378567659,1754913150718,-400.0,0.00018816,2]
[378567660,1754913150728,-461.32456692,0.00018816,2]
[378567661,1754913150738,-513.21,0.00018816,2]
[378567662,1754913150748,-1184.91,0.00018816,2]
[378567663,1754913150758,-446.8,0.00018816,2]
[378567664,1754913150768,-400.0,0.00018816,2]
[378567665,1754913150778,-2031.02,0.00018816,2]
[378567666,1754913150788,-497.75546691,0.00018816,2]
[378567667,1754913150798,-569.54,0.00018816,2]
[378567668,1754913150808,-1438.07,0.00018816,2]
[378567669,1754913150817,-1835.91,0.00018816,2]
[378567670,1754913150828,-1664.57,0.00018816,2]
[378567671,1754913150838,-474.7,0.00018816,2]
[378567672,1754913150848,-1140.5,0.00018816,2]
[378567673,1754913150858,-420.23,0.00018816,2]
[378567674,1754913150868,-558.06,0.00018816,2]
[378567675,1754913150877,-400.0,0.00018816,2]
[378567676,1754913150888,-912.23,0.00018816,2]
[378567677,1754913150897,-535.61,0.00018816,2]
[378567678,1754913150907,-3776.9,0.00018816,2]
[378567679,1754913150920,-1600.74,0.00018816,2]
[378567680,1754913150929,-400.0,0.00018816,2]
[378567681,1754913150939,-400.0,0.00018816,2]
[378567682,1754913150949,-1187.21,0.00018816,2]
[378567683,1754913150959,-400.0,0.00018816,2]
[378567684,1754913150969,-1174.64,0.00018816,2]
[378567685,1754913150979,-1143.3,0.00018816,2]
[378567686,1754913150990,-3766.4,0.00018816,2]
[378567687,1754913151000,-405.71,0.00018816,2]
[378567688,1754913151010,-1750.0,0.00018816,2]
[378567689,1754913151020,-400.0,0.00018816,2]
[378567690,1754913151030,-400.0,0.00018816,2]
[378567691,1754913151040,-400.0,0.00018816,2]
[378567692,1754913151049,-1439.21,0.00018816,2]
[378567693,1754913151059,-999.19,0.00018816,2]
[378567694,1754913151070,-400.0,0.00018816,2]
[378567695,1754913151080,-500.0,0.00018816,2]
[378567696,1754913151090,-400.0,0.00018816,2]
[378567697,1754913151100,-400.0,0.00018816,2]
[378567698,1754913151111,-825.23,0.00018816,2]
[378567699,1754913151123,-400.0,0.00018816,2]
[378567700,1754913151133,-400.0,0.00018816,2]
[378567701,1754913151143,-2291.54,0.00018816,2]
[378567702,1754913151153,-893.83,0.00018816,2]
[378567703,1754913151163,-579.98,0.00018816,2]
[378567704,1754913151175,-639.13,0.00018816,2]
[378567705,1754913151185,-1169.96,0.00018816,2]
[378567706,1754913151196,-629.51,0.00018816,2]
[378567707,1754913151206,-1947.0,0.00018816,2]
[378567708,1754913151216,-1432.85,0.00018816,2]
[378567709,1754913151227,-437.63,0.00018816,2]
[378567710,1754913151237,-1369.48,0.00018816,2]
[378567711,1754913151248,-1311.13,0.00018816,2]
[378567712,1754913151259,-3083.43,0.00018816,2]
[378567713,1754913151271,-630.75,0.00018816,2]
[378567714,1754913151282,-493.25,0.00018816,2]
[378567715,1754913151291,-1219.17,0.00018816,2]
[378567716,1754913151302,-499.66,0.00018816,2]
[378567717,1754913151312,-521.46,0.00018816,2]
[378567718,1754913151322,-875.72,0.00018816,2]
[378567719,1754913151332,-2612.12,0.00018816,2]
[378567720,1754913151344,-542.37,0.00018816,2]
[378567721,1754913151355,-717.7,0.00018816,2]
[378567722,1754913151365,-4501.74,0.00018816,2]
[378567723,1754913151376,-433.74,0.00018816,2]
[378567724,1754913151386,-1112.57,0.00018816,2]
[378567725,1754913151396,-400.0,0.00018816,2]
[378567726,1754913151406,-668.41,0.00018816,2]
[378567727,1754913151416,-6625.36,0.00018816,2]
[378567728,1754913151426,-464.98,0.00018816,2]
[378567729,1754913151436,-364.89841462,0.00018816,2]
[378567730,1754913151446,-1234.57,0.00018816,2]
[378567731,1754913151456,-3376.95,0.00018816,2]
[378567732,1754913151466,-464.79,0.00018816,2]
[378567733,1754913151476,-672.57,0.00018816,2]
[378567734,1754913151486,-400.0,0.00018816,2]
[378567735,1754913151496,-4406.48,0.00018816,2]
[378567736,1754913151505,-1313.89,0.00018816,2]
[378567737,1754913151516,-842.59,0.00018816,2]
[378567738,1754913151526,-2757.93,0.00018816,2]
[378567739,1754913151536,-503.99,0.00018816,2]
[378567740,1754913151546,-317.568454,0.00018816,2]
[378567741,1754913151555,-400.0,0.00018816,2]
[378567742,1754913151565,-478.37,0.00018817,2]
[378567743,1754913151575,-400.0,0.00018817,2]
[378567744,1754913151584,-1026.77,0.00018817,2]
[378567745,1754913151594,-527.98,0.00018817,2]
[378567746,1754913151603,-400.0,0.00018817,2]
[378567747,1754913151613,-705.32,0.00018817,2]
[378567748,1754913151623,-400.0,0.00018817,2]
[378567749,1754913151633,-1171.25,0.00018817,2]
[378567750,1754913151643,-400.0,0.00018817,2]
[378567751,1754913151652,-847.35,0.00018817,2]
[378567752,1754913151662,-981.99160235,0.00018817,2]
[378567753,1754913151673,-581.39,0.00018817,2]
[378567754,1754913151683,-448.52507335,0.00018817,2]
[378567755,1754913151692,-1319.92,0.00018817,2]
[378567756,1754913151702,-400.0,0.00018817,2]
[378567757,1754913151711,-542.81,0.00018817,2]
[378567758,1754913151721,-395.49358966,0.00018817,2]
[378567759,1754913151730,-400.0,0.00018817,2]
[378567760,1754913151739,-424.8,0.00018817,2]
[378567761,1754913151749,-400.0,0.00018817,2]
[378567762,1754913151759,-678.46,0.00018817,2]
[378567763,1754913151768,-400.0,0.00018817,2]
[378567764,1754913151778,-400.0,0.00018817,2]
[378567765,1754913151787,-360.0,0.00018817,2]
[378567766,1754913151797,-866.33,0.00018817,2]
[378567767,1754913151807,-400.0,0.00018817,2]
[378567768,1754913151816,-404.54,0.00018817,2]
[378567769,1754913151826,-400.0,0.00018817,2]
[378567770,1754913151837,-1557.21,0.00018817,2]
[378567771,1754913151846,-746.59,0.00018817,2]
[378567772,1754913151856,-972.72,0.00018817,2]
[378567773,1754913151866,-938.79,0.00018817,2]
[378567774,1754913151876,-681.35,0.00018817,2]
[378567775,1754913151886,-400.0,0.00018817,2]
[378567776,1754913151896,-400.0,0.00018817,2]
[378567777,1754913151906,-1311.69,0.00018817,2]
[378567778,1754913151916,-505.11,0.00018817,2]
[378567779,1754913151926,-400.0,0.00018817,2]
[378567780,1754913151936,-1492.93,0.00018817,2]
[378567781,1754913151947,-400.0,0.00018817,2]
[378567782,1754913151958,-1003.89,0.00018817,2]
[378567783,1754913151968,-730.49,0.00018817,2]
[378567784,1754913151978,-1885.29,0.00018817,2]
[378567785,1754913152226,-400.0,0.00018817,2]
[378567786,1754913152241,-400.0,0.00018817,2]
[378567787,1754913152250,-2097.45,0.00018817,2]
[378567788,1754913152260,-417.63,0.00018817,2]
[378567789,1754913152272,-2920.65,0.00018817,2]
[378567790,1754913152281,-805.82,0.00018817,2]
[378567791,1754913152291,-400.0,0.00018817,2]
[378567792,1754913152300,-788.53,0.00018817,2]
[378567793,1754913152310,-1491.0,0.00018817,2]
[378567794,1754913152320,-578.09,0.00018817,2]
[378567795,1754913152329,-1580.72,0.00018817,2]
[378567796,1754913152339,-1959.0,0.00018817,2]
[378567797,1754913152349,-400.0,0.00018817,2]
[378567798,1754913152359,-618.06,0.00018817,2]
[378567799,1754913152369,-1137.38,0.00018817,2]
[378567800,1754913152378,-5923.04,0.00018817,2]
[378567801,1754913152388,-1732.92,0.00018817,2]
[378567802,1754913152398,-887.67,0.00018817,2]
[378567803,1754913152407,-400.0,0.00018817,2]
[378567804,1754913152416,-1061.76,0.00018817,2]
[378567805,1754913152426,-835.58,0.00018817,2]
[378567806,1754913152436,-953.47,0.00018817,2]
[378567807,1754913152446,-1830.2,0.00018817,2]
[378567808,1754913152455,-400.0,0.00018817,2]
[378567809,1754913152465,-7856.95,0.00018817,2]
[378567810,1754913152475,-1326.05,0.00018817,2]
[378567811,1754913152484,-1090.22,0.00018817,2]
[378567812,1754913152493,-867.25,0.00018817,2]
[378567813,1754913152502,-400.0,0.00018817,2]
[378567814,1754913152512,-921.81,0.00018817,2]
[378567815,1754913152521,-400.0,0.00018817,2]
[378567816,1754913152531,-862.26,0.00018817,2]
[378567817,1754913152541,-1071.67,0.00018817,2]
[378567818,1754913152551,-1367.79,0.00018817,2]
[378567819,1754913152560,-762.59,0.00018817,2]
[378567820,1754913152569,-834.48,0.00018817,2]
[378567821,1754913152579,-1676.78,0.00018817,2]
[378567822,1754913152590,-494.42,0.00018817,2]
[378567823,1754913152600,-400.0,0.00018817,2]
[378567824,1754913152610,-1331.18,0.00018817,2]
[378567825,1754913152620,-571.53,0.00018817,2]
[378567826,1754913152630,-404.79,0.00018817,2]
[378567827,1754913152640,-3224.09,0.00018817,2]
[378567828,1754913152650,-569.83,0.00018817,2]
[378567829,1754913152659,-2108.73,0.00018817,2]
[378567830,1754913152668,-2950.39,0.00018817,2]
[378567831,1754913152678,-400.0,0.00018817,2]
[378567832,1754913152688,-1496.63,0.00018817,2]
[378567833,1754913152697,-1631.44,0.00018817,2]
[378567834,1754913152706,-400.0,0.00018817,2]
[378567835,1754913152716,-1796.59,0.00018817,2]
[378567836,1754913152726,-400.0,0.00018817,2]
[378567837,1754913152736,-1954.18,0.00018817,2]
[378567838,1754913152746,-7055.23,0.00018817,2]
[378567839,1754913152756,-1953.7,0.00018817,2]
[378567840,1754913152765,-1959.6,0.00018817,2]
[378567841,1754913152775,-873.2,0.00018817,2]
[378567842,1754913152784,-1387.49,0.00018817,2]
[378567843,1754913152794,-2235.63,0.00018817,2]
[378567844,1754913152804,-400.0,0.00018817,2]
[378567845,1754913152813,-2605.86,0.00018817,2]
[378567846,1754913152823,-2389.88,0.00018817,2]
[378567847,1754913152833,-872.7,0.00018817,2]
[378567848,1754913152843,-1506.75,0.00018817,2]
[378567849,1754913152852,-1438.79,0.00018817,2]
[378567850,1754913152862,-1393.05,0.00018817,2]
[378567851,1754913152872,-400.0,0.00018817,2]
[378567852,1754913152881,-1049.0,0.00018817,2]
[378567853,1754913152890,-2289.57,0.00018817,2]
[378567854,1754913152899,-2125.89,0.00018817,2]
[378567855,1754913152909,-501.78,0.00018817,2]
[378567856,1754913152920,-1348.98,0.00018817,2]
[378567857,1754913152929,-1106.35,0.00018817,2]
[378567858,1754913152939,-1712.29,0.00018817,2]
[378567859,1754913152947,-649.39,0.00018817,2]
[378567860,1754913152957,-744.08,0.00018817,2]
[378567861,1754913152967,-2029.64,0.00018817,2]
[378567862,1754913152976,-1447.39,0.00018817,2]
[378567863,1754913152986,-1696.76,0.00018817,2]
[378567864,1754913152996,-3975.5,0.00018817,2]
[378567865,1754913153005,-400.0,0.00018817,2]
[378567866,1754913153015,-734.33,0.00018817,2]
[378567867,1754913153025,-530.76,0.00018817,2]
[378567868,1754913153036,-439.15,0.00018817,2]
[378567869,1754913153046,-1536.74,0.00018817,2]
[378567870,1754913153057,-778.12,0.00018817,2]
[378567871,1754913153067,-1845.62,0.00018817,2]
[378567872,1754913153077,-574.84,0.00018817,2]
[378567873,1754913153087,-1648.11,0.00018817,2]
[378567874,1754913153097,-1137.58,0.00018817,2]
[378567875,1754913153107,-1689.44,0.00018817,2]
[378567876,1754913153117,-1000.45,0.00018817,2]
[378567877,1754913153127,-1628.59,0.00018817,2]
[378567878,1754913153137,-3162.45,0.00018817,2]
[378567879,1754913153147,-916.42,0.00018817,2]
[378567880,1754913153157,-951.52,0.00018817,2]
[378567881,1754913153167,-1036.79,0.00018817,2]
[378567882,1754913153178,-4094.74,0.00018817,2]
[378567883,1754913153189,-445.03,0.00018817,2]
[378567884,1754913153199,-561.9,0.00018817,2]
[378567885,1754913153209,-1757.59,0.00018817,2]
[378567886,1754913153219,-4776.03,0.00018817,2]
[378567887,1754913153229,-441.43,0.00018817,2]
[378567888,1754913153239,-3424.67,0.00018817,2]
[378567889,1754913153249,-1865.46,0.00018817,2]
[378567890,1754913153261,-851.6,0.00018817,2]
[378567891,1754913153272,-4516.83,0.00018817,2]
[378567892,1754913153283,-3740.45,0.00018817,2]
[378567893,1754913153293,-400.0,0.00018817,2]
[378567894,1754913153303,-4648.91,0.00018817,2]
[378567895,1754913153315,-3770.26,0.00018817,2]
[378567896,1754913153326,-1381.04,0.00018817,2]
[378567897,1754913153336,-400.0,0.00018817,2]
[378567898,1754913153346,-1807.77,0.00018817,2]
[378567899,1754913153357,-1945.82,0.00018817,2]
[378567900,1754913153367,-400.0,0.00018817,2]
[378567901,1754913153377,-1876.26,0.00018817,2]
[378567902,1754913153387,-2063.2,0.00018817,2]
[378567903,1754913153397,-1978.2,0.00018817,2]
[378567904,1754913153407,-521.24,0.00018817,2]
[378567905,1754913153416,-463.37,0.00018817,2]
[378567906,1754913153428,-2356.45,0.00018817,2]
[378567907,1754913153438,-2155.4,0.00018817,2]
[378567908,1754913153448,-492.39,0.00018817,2]
[378567909,1754913153458,-2004.67,0.00018817,2]
[378567910,1754913153469,-1158.32,0.00018817,2]
[378567911,1754913153479,-1467.0,0.00018817,2]
[378567912,1754913153489,-2513.22,0.00018817,2]
[378567913,1754913153498,-734.51,0.00018817,2]
[378567914,1754913153508,-565.83,0.00018817,2]
[378567915,1754913153518,-2736.07,0.00018817,2]
[378567916,1754913153528,-819.78,0.00018817,2]
[378567917,1754913153537,-1082.13,0.00018817,2]
[378567918,1754913153547,-1712.61,0.00018817,2]
[378567919,1754913153557,-1721.6,0.00018817,2]
[378567920,1754913153567,-1066.33,0.00018817,2]
[378567921,1754913153577,-514.05,0.00018817,2]
[378567922,1754913153587,-2649.89,0.00018817,2]
[378567923,1754913153598,-400.0,0.00018817,2]
[378567924,1754913153608,-540.88,0.00018817,2]
[378567925,1754913153618,-589.15,0.00018817,2]
[378567926,1754913153628,-400.0,0.00018817,2]
[378567927,1754913153638,-507.53,0.00018817,2]
[378567928,1754913153648,-553.54,0.00018817,2]
[378567929,1754913153658,-7631.99,0.00018817,2]
[378567930,1754913153668,-838.96,0.00018817,2]
[378567931,1754913153678,-400.0,0.00018817,2]
[378567932,1754913153688,-400.0,0.00018817,2]
[378567933,1754913153700,-1649.72,0.00018817,2]
[378567934,1754913153711,-400.0,0.00018817,2]
[378567935,1754913153720,-1026.97,0.00018817,2]
[378567936,1754913153731,-983.44,0.00018817,2]
[378567937,1754913153741,-435.35,0.00018817,2]
[378567938,1754913153751,-2058.27,0.00018817,2]
[378567939,1754913153762,-400.0,0.00018817,2]
[378567940,1754913153772,-150.0,0.00018817,2]
[378567941,1754913153782,-2584.26,0.00018817,2]
[378567942,1754913153791,-400.0,0.00018817,2]
[378567943,1754913153801,-1261.13,0.00018817,2]